fUSD/lending_fUSD_20251213
["ID","MTS","AMOUNT","RATE_DAILY","PERIOD"]
[398399607,1765608223489,-2.88013311,0.00015852,2]
[398399608,1765608225484,-203.85408953,0.00015852,2]
[398399609,1765608229346,-163.06417837,0.00015852,2]
[398399610,1765608230898,-210.30187148,0.00015852,2]
[398399611,1765608258517,-90.85231865,0.00015852,2]
[398399612,1765608258543,-281.30836937,0.00015876,2]
[398399613,1765608260423,-174.5426435,0.00015876,2]
[398399614,1765608262478,-274.6353649,0.00015876,2]
[398399615,1765608265699,-238.43279707,0.00015876,2]
[398399617,1765608490027,197.12,7.865e-05,2]
[398399618,1765608490213,197.12,8.279e-05,2]
[398399619,1765608490405,197.12,8.693e-05,2]
[398399620,1765608490593,197.12,9.107e-05,2]
[398399621,1765608492172,197.12,9.521e-05,2]
[398399622,1765608492220,197.12,9.935e-05,2]
[398399623,1765608492266,197.12,0.00010349,2]
[398399624,1765608492301,-159.34382516,0.00015876,2]
[398399625,1765608492324,-166.66,0.0001595,2]
[398399626,1765608492347,-69.29439852,0.000161,2]
[398399627,1765608492392,197.12,0.00010763,2]
[398399628,1765608492448,197.12,0.00011176,2]
[398399629,1765608492512,197.12,0.0001159,2]
[398399630,1765608492558,197.12,0.00012004,2]
[398399631,1765608492608,197.12,0.00012418,2]
[398399632,1765608492655,197.12,0.00012832,2]
[398399633,1765608492700,197.12,0.00013246,2]
[398399634,1765608492820,197.12,0.0001366,2]
[398399635,1765608493026,197.12,0.00014074,2]
[398399636,1765608493221,197.12,0.00014488,2]
[398399637,1765608493407,197.12,0.00014902,2]
[398399638,1765608493604,197.12,0.00015316,2]
[398399639,1765608499474,-197.12,0.0001573,2]
[398399640,1765608499508,-5.86301789,0.000161,2]
[398399641,1765608501052,-119.2411283,0.000161,2]
[398399642,1765608501078,-97.80610768,0.000161,2]
[398399643,1765608503446,-262.90025587,0.000161,2]
[398399644,1765608508784,-155.58129497,0.000161,2]
[398399645,1765608511992,-231.50575954,0.000161,2]
[398399646,1765608515081,-200.0,0.000161,2]
[398399647,1765608517956,-407.67368774,0.000161,2]
[398399648,1765608520174,-281.2323833,0.000161,2]
[398399649,1765608522394,-365.57297828,0.000161,2]
[398399650,1765608526386,-325.4573565,0.000161,2]
[398399651,1765608528452,-248.77632904,0.000161,2]
[398399654,1765608532489,-176.35581029,0.000161,2]
[398399655,1765608535711,-906.76711307,0.000161,2]
[398399656,1765608535732,-209.03545029,0.0001619,2]
[398399657,1765608535752,-151.0,0.00016197,2]
[398399658,1765608535772,-300.0,0.00016199,2]
[398399659,1765608535793,-1200.0,0.00016199,2]
[398399660,1765608535813,-991.24217715,0.000162,2]
[398399661,1765608535833,-164.53,0.00016232,2]
[398399662,1765608535854,-166.66,0.00016266,2]
[398399663,1765608535877,-194.39854462,0.000163,2]
[398399664,1765608535898,-2516.36671487,0.000163,2]
[398399668,1765608631918,-1143.26236132,0.000163,2]
[398399669,1765608631931,-560.27473871,0.00016347,2]
[398399671,1765608631997,-272.47,0.00016347,2]
[398399672,1765608632008,-767.25526129,0.00016347,2]
[398399673,1765608632018,-300.0,0.00016437,2]
[398399674,1765608632027,-1200.0,0.00016437,2]
[398399675,1765608632036,-922.49,0.00016438,2]
[398399676,1765608632045,-922.49,0.00016438,2]
[398399677,1765608632054,-922.49,0.00016438,2]
[398399678,1765608632064,-5636.26,0.00016438,2]
[398399679,1765608632073,-700.12,0.00016441,2]
[398399680,1765608632083,-499.0,0.00016475,2]
[398399681,1765608632092,-193.14650351,0.00016475,2]
[398399682,1765608632102,-300.0,0.00016475,2]
[398399683,1765608632111,-3659.62907619,0.000165,2]
[398399684,1765608632121,-703.67,0.00016541,2]
[398399685,1765608632131,-500.0,0.00016575,2]
[398399686,1765608632141,-166.66,0.00016581,2]
[398399687,1765608632150,-250.0,0.00016602,2]
[398399688,1765608632159,-395.29813579,0.00016604,2]
[398399689,1765608632171,-4835.2996689,0.00016604,2]
[398399690,1765608632183,-797.59445327,0.00016604,2]
[398399691,1765608632194,-1059.20587329,0.00016604,2]
[398399692,1765608632219,-1671.51544629,0.00016604,2]
[398399731,1765608638050,-7999.78642246,0.00016604,2]
[398399732,1765608638060,-568.51357754,0.00016694,2]
[398399733,1765608638214,-3073.52195086,0.00016694,2]
[398399735,1765608638227,-3659.62907619,0.000167,2]
[398399736,1765608638237,-1174.13730854,0.00016717,2]
[398399737,1765608638247,-518.83805219,0.0001683,2]
[398399738,1765608638257,-3659.62907619,0.000169,2]
[398399739,1765608638268,-349.0,0.00016932,2]
[398399740,1765608638278,-150.03713056,0.00016939,2]
[398399741,1765608638287,-500.0,0.00016939,2]
[398399743,1765608638298,-500.0,0.00016939,2]
[398399744,1765608638307,-566.95222248,0.00016939,2]
[398399746,1765608638317,-490.98070383,0.00016939,2]
[398399747,1765608638326,-500.0,0.00016939,2]
[398399749,1765608638336,-500.0,0.00016939,2]
[398399750,1765608638345,-500.0,0.00016939,2]
[398399752,1765608638355,-500.0,0.00016939,2]
[398399753,1765608638364,-1354.8999527,0.0001694,2]
[398399755,1765608638373,-34809.11727109,0.0001694,2]
[398399757,1765608638386,-787.36629238,0.0001694,2]
[398399760,1765608640438,-398.9206245,0.0001694,2]
[398399765,1765608640933,-1.7e-07,0.0001694,2]
[398399768,1765608643750,-448.45149999,0.0001694,2]
[398399772,1765608663391,-300.0,0.00016099,2]
[398399773,1765608663418,-207.62692838,0.000161,2]
[398399774,1765608669148,-185.93578191,0.000161,2]
[398399775,1765608671721,-266.73534782,0.00016098,2]
[398399776,1765608676209,-291.76302965,0.00016098,2]
[398399777,1765608679294,-203.89713019,0.00016098,2]
[398399778,1765608681512,-449.54578886,0.00016098,2]
[398399779,1765608688328,-237.59415219,0.00016098,2]
[398399780,1765608692142,-198.67438707,0.00016098,2]
[398399781,1765608696386,-157.29869469,0.00015778,2]
[398399782,1765608700042,-282.48557006,0.00015778,2]
[398399783,1765608702287,-201.57911678,0.00015778,2]
[398399784,1765608704467,-250.01970239,0.00015778,2]
[398399785,1765608708825,-11.22791608,0.00015778,2]
[398399786,1765608708849,-197.00905427,0.00016098,2]
[398399787,1765608711530,-152.37446444,0.00016098,2]
[398399788,1765608713859,-184.47280074,0.00016098,2]
[398399789,1765608716634,-214.11284473,0.00016098,2]
[398399790,1765608718783,-343.78897799,0.00016098,2]
[398399791,1765608720424,-277.05453468,0.00016098,2]
[398399792,1765608725545,-154.91520239,0.00016098,2]
[398399793,1765608727864,-163.75449751,0.00016098,2]
[398399794,1765608732197,-379.32662888,0.00016098,2]
[398399795,1765608733728,-361.8782281,0.00016098,2]
[398399796,1765608736420,-461.12137404,0.00016098,2]
[398399797,1765608741136,-160.4855862,0.00016098,2]
[398399798,1765608742222,-243.79913167,0.00016098,2]
[398399799,1765608744361,-159.51406417,0.00016098,2]
[398399800,1765608746493,-174.58591822,0.00016098,2]
[398399801,1765608748581,-341.59177984,0.00016098,2]
[398399802,1765608752326,-236.16323085,0.00016098,2]
[398399803,1765608763575,-405.08868172,0.00016098,2]
[398399804,1765608766052,-647.64361531,0.00016098,2]
[398399812,1765609714006,-302.31947531,0.00015778,2]
[398399813,1765609718777,-287.82395899,0.00015778,2]
[398399814,1765609819977,-131.9455657,0.00015778,2]
[398399815,1765609820000,-135.45876786,0.000158,2]
[398399816,1765609832286,-194.54123214,0.000158,2]
[398399817,1765609832295,-300.0,0.00015999,2]
[398399818,1765609832304,-300.0,0.00015999,2]
[398399819,1765609832314,-1200.0,0.00015999,2]
[398399820,1765609832323,-86.2024815,0.00016,2]
[398399821,1765609832415,-658.19883048,0.00016,2]
[398399862,1765609838230,-8097.13129368,0.00016,2]
[398399882,1765609842917,-1.7e-07,0.00016,2]
[398399887,1765609843438,-330.49003941,0.00016,2]
[398399891,1765609846138,-265.60627094,0.00016,2]
[398399892,1765609846364,-602.0,0.00016,2]
[398399893,1765609846407,-1996.92010009,0.00016,2]
[398399894,1765609846419,-259.46678373,0.00016,2]
[398399895,1765609846429,-209.3,0.0001604,2]
[398399896,1765609846438,-564.67872648,0.0001609,7]
[398399897,1765609846447,-151.0,0.00016098,2]
[398399898,1765609846457,-360.06370999,0.00016099,2]
[398399899,1765609846469,-148.47641491,0.00016099,2]
[398399900,1765609846479,-500.0,0.00016438,2]
[398399901,1765609846488,-500.0,0.00016438,2]
[398399902,1765609846497,-500.0,0.00016438,2]
[398399903,1765609846506,-172.34358509,0.00016438,2]
[398399905,1765610194035,-420.32602362,0.0001578,2]
[398399906,1765610196229,-350.66934115,0.0001578,2]
[398399907,1765610198992,-164.1197709,0.0001578,2]
[398399908,1765610328530,-315.60747664,0.00015659,2]
[398399909,1765610331211,-192.66252336,0.00015659,2]
[398399910,1765610331233,-61.04311362,0.0001578,2]
[398399911,1765610413623,377.55,0.00013699,2]
[398399913,1765610718884,307.07578522,0.00025,120]
[398399927,1765610868526,-3.84175071,0.0001578,2]
[398399928,1765610868554,-250.61748765,0.00015825,2]
[398399929,1765610872400,-199.01541945,0.00015825,2]
[398399930,1765610890113,1000.0,0.000135,2]
[398399931,1765610900538,3244.13120838,0.00015,2]
[398399936,1765610918497,839.25548491,0.00015,2]
[398399937,1765610948840,516.73351048,0.000155,4]
[398399938,1765611018480,-361.38875137,0.00015539,3]
[398399939,1765611021816,-191.68912253,0.00015539,3]
[398399940,1765611023394,-174.15624375,0.00015539,3]
[398399941,1765611026545,-160.24828499,0.00015539,3]
[398399947,1765611031333,-111.51759736,0.00015539,3]
[398399949,1765611031343,-1046.5070929,0.00015825,2]
[398399951,1765611031353,-304.06694,0.00015929,2]
[398399952,1765611031362,-304.06693999,0.0001593,2]
[398399953,1765611031371,-304.06693999,0.00015932,2]
[398399954,1765611031381,-304.06693999,0.00015933,2]
[398399955,1765611031391,-168.06477469,0.00016027,2]
[398399956,1765611031442,-853.06165973,0.00016027,2]
[398399957,1765611031453,-178.87356558,0.00016027,2]
[398399958,1765611031463,-151.0,0.00016027,2]
[398399959,1765611031473,-282.0,0.00016028,2]
[398399960,1765611031483,-277.3513347,0.00016028,2]
[398399961,1765611031495,-22.6486653,0.00016028,2]
[398399962,1765611031504,-2235.19327636,0.00016028,2]
[398399963,1765611031515,-500.0,0.00016029,2]
[398399964,1765611031524,-181.20647081,0.00016029,2]
[398399965,1765611031534,-522.4284576,0.00016029,2]
[398399966,1765611031544,-500.0,0.00016029,2]
[398399967,1765611031553,-500.0,0.00016029,2]
[398399968,1765611031563,-500.0,0.00016029,2]
[398399969,1765611031573,-332.33118931,0.00016029,2]
[398399970,1765611031583,-467.0,0.00016029,2]
[398399971,1765611031593,-181.3262718,0.0001603,2]
[398399972,1765611031603,-2416.48496802,0.0001603,2]
[398399973,1765611031614,-530.86522298,0.0001603,2]
[398399974,1765611031623,-89.3929788,0.0001603,2]
[398399976,1765611031635,-1617.34995375,0.0001603,2]
[398399978,1765611031647,-488.41,0.0001603,2]
[398399980,1765611031658,-808.46875985,0.0001603,2]
[398399982,1765611031667,-67.24313954,0.0001603,2]
[398399984,1765611031678,-529.74179822,0.0001603,2]
[398399986,1765611031694,-4473.60324311,0.0001603,2]
[398399989,1765611031709,-57233.78894603,0.0001603,2]
[398400030,1765611039497,-2343.45596777,0.0001603,2]
[398400031,1765611039509,-936.11247829,0.0001603,2]
[398400032,1765611039825,-1851.7881,0.0001603,2]
[398400056,1765611042629,-425.33738614,0.0001603,2]
[398400057,1765611042641,-4369.15899172,0.0001603,2]
[398400058,1765611042743,-2617.51112008,0.0001603,2]
[398400061,1765611045766,-432.322427,0.0001603,2]
[398400062,1765611045803,-1812.41144892,0.0001603,2]
[398400063,1765611045824,-1404.55695213,0.0001603,2]
[398400068,1765611231836,-250.0,0.00015526,2]
[398400069,1765611231866,-164.46798973,0.00015929,2]
[398400070,1765611231885,-250.0,0.0001593,2]
[398400071,1765611231899,-164.46798973,0.0001593,2]
[398400072,1765611231910,-4171.06402054,0.0001593,2]
[398400073,1765611437535,166.66,0.00014694,2]
[398400074,1765611437732,166.66,0.00015004,2]
[398400075,1765611438119,166.66,0.00015313,2]
[398400076,1765611453467,-327.00865338,0.00015455,2]
[398400077,1765611455092,-172.99134662,0.00015455,2]
[398400078,1765611455116,-35.76373537,0.00015622,2]
[398400079,1765611466934,188.37,0.00015394,2]
[398400085,1765611848247,665.937125,7.945e-05,2]
[398400086,1765611933506,-130.89626463,0.00015622,2]
[398400087,1765611933529,-30.42417982,0.00015683,2]
[398400088,1765611935519,-352.8031918,0.00015683,2]
[398400089,1765611937629,-116.77262838,0.00015683,2]
[398400090,1765611937652,-156.45165699,0.00015683,2]
[398400091,1765611937674,-23.92501812,0.00015683,2]
[398400092,1765611940168,-126.07498188,0.00015683,2]
[398400093,1765611940190,-88.86756786,0.00015683,2]
[398400094,1765611941729,-252.57997132,0.00015683,2]
[398400095,1765611943772,-158.55246082,0.00015683,2]
[398400096,1765611943794,-150.0,0.00015683,2]
[398400097,1765611943815,-150.0,0.00015683,2]
[398400098,1765611943840,-127.51316426,0.00015683,2]
[398400099,1765611946333,-22.48683574,0.00015683,2]
[398400100,1765611946355,-141.66073535,0.00015683,2]
[398400101,1765611948396,-8.33926465,0.00015683,2]
[398400102,1765611948420,-225.27292857,0.00015683,2]
[398400103,1765611949975,-274.72707143,0.00015683,2]
[398400104,1765611950000,-151.77653918,0.00015683,2]
[398400105,1765611954028,-250.0,0.00015459,2]
[398400106,1765611956549,-195.0,0.00015683,2]
[398400107,1765611959769,-96.22346082,0.00015683,2]
[398400108,1765611959792,-222.41911365,0.00015683,2]
[398400109,1765611968185,2500.0,7.945e-05,2]
[398400110,1765612027532,4432.332046,7.945e-05,2]
[398400111,1765612039095,-168.00488833,0.00015656,2]
[398400112,1765612039120,-113.30348104,0.00015656,2]
[398400113,1765612094178,500.0,0.00015401,2]
[398400114,1765612095149,-36.69651896,0.00015656,2]
[398400115,1765612095172,-199.25787956,0.00015683,2]
[398400116,1765612113401,-78.32300679,0.00015683,2]
[398400117,1765612113424,-138.72422919,0.00015759,2]
[398400118,1765612116487,-262.90025587,0.00015759,2]
[398400119,1765612119175,-155.58129497,0.00015759,2]
[398400120,1765612122257,-281.2323833,0.00015759,2]
[398400121,1765612125369,-150.0,0.00015656,2]
[398400122,1765612125390,-263.53670563,0.00015656,2]
[398400123,1765612127437,-236.46329437,0.00015656,2]
[398400124,1765612127459,-88.99406213,0.00015656,2]
[398400125,1765612130749,-61.00593787,0.00015656,2]
[398400126,1765612130771,-138.99406213,0.00015656,2]
[398400127,1765612132286,-11.00593787,0.00015656,2]
[398400128,1765612132310,-150.0,0.00015656,2]
[398400129,1765612132333,-204.56704041,0.00015656,2]
[398400130,1765612134548,-5.42111459,0.00015656,2]
[398400131,1765612134572,-170.9346957,0.00015656,2]
[398400132,1765612137403,-248.77632904,0.00015656,2]
[398400133,1765612138837,-80.28897526,0.00015656,2]
[398400134,1765612138859,-151.21678428,0.00015656,2]
[398400135,1765612140399,-238.43279707,0.00015656,2]
[398400136,1765612142610,-35.35041865,0.00015656,2]
[398400137,1765612142632,-239.28494625,0.00015656,2]
[398400138,1765612147286,-159.34382516,0.00015656,2]
[398400159,1765612235826,-101.37122859,0.00015656,2]
[398400160,1765612235849,-73.17141491,0.00015656,2]
[398400167,1765612238316,-426.82858509,0.00015656,2]
[398400168,1765612238326,-150.0,0.00015656,2]
[398400169,1765612238335,-500.0,0.00015656,2]
[398400170,1765612238345,-300.0,0.00015792,2]
[398400171,1765612238354,-300.0,0.00015792,2]
[398400172,1765612238364,-1200.0,0.00015792,2]
[398400173,1765612238373,-150.0,0.00015793,2]
[398400174,1765612238382,-150.0,0.00015793,2]
[398400175,1765612238391,-150.0,0.00015793,2]
[398400176,1765612238401,-156.91068107,0.00015793,2]
[398400177,1765612238411,-500.0,0.00015793,2]
[398400178,1765612238421,-425.0,0.00015793,2]
[398400179,1765612238430,-500.0,0.00015793,2]
[398400180,1765612238439,-500.0,0.00015793,2]
[398400181,1765612238449,-218.53996822,0.00015809,2]
[398400182,1765612238458,-150.0,0.0001582,2]
[398400183,1765612238468,-500.0,0.0001582,2]
[398400184,1765612238477,-500.0,0.0001582,2]
[398400185,1765612238486,-28521.3755,0.0001583,2]
[398400186,1765612238496,-150.09557628,0.00015832,2]
[398400187,1765612238505,-4672.23512294,0.00015832,2]
[398400188,1765612238515,-154.88813698,0.00015917,2]
[398400189,1765612238524,-151.0,0.00015921,2]
[398400190,1765612238533,-151.0,0.00015921,2]
[398400191,1765612238543,-151.0,0.00015921,2]
[398400192,1765612238553,-500.0,0.00015921,2]
[398400193,1765612238563,-200.0,0.00015921,2]
[398400194,1765612238573,-151.0,0.00015926,2]
[398400195,1765612238582,-781.17,0.00015929,2]
[398400196,1765612238591,-150.0,0.0001593,2]
[398400197,1765612238601,-254.21306055,0.0001593,2]
[398400198,1765612238610,-425.0,0.0001593,2]
[398400199,1765612238620,-500.0,0.0001593,2]
[398400200,1765612238629,-500.0,0.0001593,2]
[398400201,1765612238638,-200.0,0.0001593,2]
[398400202,1765612238648,-151.0,0.0001593,2]
[398400203,1765612238657,-151.0,0.0001593,2]
[398400204,1765612238667,-251.138403,0.0001593,2]
[398400205,1765612238677,-507.65515811,0.00015931,2]
[398400206,1765612238687,-331.46073248,0.00015931,2]
[398400207,1765612238697,-501.46986828,0.00015931,2]
[398400208,1765612238711,-500.0,0.00015931,2]
[398400209,1765612238721,-327.40110584,0.00015931,2]
[398400210,1765612238731,-500.0,0.00015931,2]
[398400211,1765612238741,-500.0,0.00015931,2]
[398400212,1765612238751,-500.0,0.00015931,2]
[398400213,1765612238760,-500.0,0.00015931,2]
[398400214,1765612238769,-500.0,0.00015931,2]
[398400215,1765612238779,-500.0,0.00015931,2]
[398400216,1765612238788,-500.0,0.00015931,2]
[398400217,1765612238797,-500.0,0.00015931,2]
[398400218,1765612238809,-532.58694132,0.00015931,2]
[398400219,1765612238819,-500.0,0.00015931,2]
[398400220,1765612238828,-500.0,0.00015931,2]
[398400221,1765612238837,-500.0,0.00015931,2]
[398400222,1765612238847,-500.0,0.00015931,2]
[398400223,1765612238857,-500.0,0.00015931,2]
[398400224,1765612238866,-500.0,0.00015931,2]
[398400225,1765612238875,-500.0,0.00015931,2]
[398400226,1765612238884,-500.0,0.00015931,2]
[398400227,1765612238894,-9999.99,0.00015932,2]
[398400228,1765612238903,-166.66,0.00015932,2]
[398400229,1765612238913,-235.98261687,0.00015957,2]
[398400230,1765612238923,-500.0,0.00015957,2]
[398400231,1765612238932,-450.0,0.00015957,2]
[398400232,1765612238942,-150.0,0.00015957,2]
[398400233,1765612238952,-150.0,0.00015957,2]
[398400234,1765612238962,-150.0,0.00015957,2]
[398400235,1765612238971,-150.0,0.00015957,2]
[398400236,1765612238980,-151.37295936,0.00015957,2]
[398400237,1765612238990,-500.0,0.00015957,2]
[398400238,1765612238999,-150.0,0.00015957,2]
[398400239,1765612239009,-151.0,0.00015957,2]
[398400240,1765612239018,-255.002708,0.00015957,2]
[398400241,1765612239027,-300.0,0.00016005,2]
[398400242,1765612239037,-11767.1334605,0.00016005,2]
[398400243,1765612239047,-527.57313586,0.00016014,2]
[398400244,1765612239057,-9483.3020873,0.00016017,2]
[398400245,1765612239066,-151.0,0.00016017,2]
[398400246,1765612239075,-1349.6954685,0.0001602,2]
[398400247,1765612239085,-1000.0,0.00016029,2]
[398400248,1765612239094,-431.45678305,0.0001603,2]
[398400249,1765612239104,-7741.2356806,0.0001603,2]
[398400250,1765612239114,-151.0,0.0001603,2]
[398400251,1765612239124,-151.0,0.0001603,2]
[398400252,1765612239134,-151.0,0.00016036,2]
[398400253,1765612239144,-151.0,0.00016036,2]
[398400254,1765612239154,-151.0,0.00016036,2]
[398400255,1765612239164,-151.0,0.00016036,2]
[398400256,1765612239173,-151.0,0.00016036,2]
[398400257,1765612239184,-151.0,0.00016036,2]
[398400258,1765612239193,-151.0,0.00016036,2]
[398400259,1765612239204,-4672.23512293,0.00016062,2]
[398400260,1765612239213,-200.0,0.00016067,2]
[398400261,1765612239223,-425.0,0.00016067,2]
[398400262,1765612239232,-500.0,0.00016067,2]
[398400263,1765612239241,-500.0,0.00016067,2]
[398400264,1765612239251,-230.0,0.00016071,2]
[398400265,1765612239261,-166.49,0.00016085,2]
[398400266,1765612239271,-500.0,0.00016094,2]
[398400267,1765612239280,-150.0,0.00016094,2]
[398400268,1765612239290,-150.0,0.00016094,2]
[398400269,1765612239300,-155.42907447,0.00016094,2]
[398400270,1765612239309,-150.0,0.00016094,2]
[398400271,1765612239319,-500.0,0.00016094,2]
[398400272,1765612239329,-190.0,0.00016096,2]
[398400273,1765612239339,-538.0,0.00016096,2]
[398400274,1765612239348,-213.50872948,0.00016115,2]
[398400275,1765612239358,-500.0,0.00016115,2]
[398400276,1765612239367,-207.36933477,0.00016115,2]
[398400277,1765612239376,-477.78633838,0.00016115,2]
[398400278,1765612239386,-151.0,0.00016116,2]
[398400279,1765612239395,-299.99,0.00016116,4]
[398400280,1765612239405,-273.3,0.00016116,2]
[398400281,1765612239415,-9999.99,0.00016116,2]
[398400282,1765612239424,-1198.47,0.00016116,2]
[398400283,1765612239434,-150.99,0.00016116,2]
[398400284,1765612239443,-151.0,0.00016128,2]
[398400285,1765612239453,-500.0,0.000162,2]
[398400286,1765612239463,-1216.59,0.000162,2]
[398400287,1765612239472,-463.9,0.000162,2]
[398400288,1765612239482,-170.36,0.000162,2]
[398400289,1765612239491,-150.0,0.000162,2]
[398400290,1765612239500,-1216.59,0.000162,2]
[398400291,1765612239509,-150.0,0.000162,2]
[398400292,1765612239519,-169.8,0.000162,2]
[398400293,1765612239529,-463.9,0.000162,2]
[398400294,1765612239538,-178.16,0.000162,2]
[398400295,1765612239547,-178.16,0.000162,2]
[398400296,1765612239557,-178.16,0.000162,2]
[398400297,1765612239566,-552.96,0.000162,2]
[398400298,1765612239575,-1216.59,0.000162,2]
[398400299,1765612239585,-6.15818534,0.000162,2]
[398400300,1765612239598,-457.74181466,0.000162,2]
[398400301,1765612239607,-150.0,0.000162,2]
[398400302,1765612239617,-340.42,0.000162,2]
[398400303,1765612239626,-177.98,0.000162,2]
[398400304,1765612239636,-552.96,0.000162,2]
[398400305,1765612239645,-552.26,0.000162,2]
[398400307,1765612239656,-474.74,0.000162,2]
[398400309,1765612239665,-150.0,0.000162,2]
[398400310,1765612239675,-152.42,0.000162,2]
[398400311,1765612239684,-356.26,0.000162,2]
[398400312,1765612239693,-463.9,0.000162,2]
[398400313,1765612239702,-552.96,0.000162,2]
[398400314,1765612239711,-178.16,0.000162,2]
[398400315,1765612239721,-304.91,0.000162,2]
[398400316,1765612239730,-341.13,0.000162,2]
[398400317,1765612239739,-340.64,0.000162,2]
[398400318,1765612239749,-552.96,0.000162,2]
[398400319,1765612239759,-1216.59,0.000162,2]
[398400320,1765612239768,-150.0,0.000162,2]
[398400321,1765612239777,-182.22,0.000162,2]
[398400322,1765612239786,-463.08,0.000162,2]
[398400323,1765612239795,-178.16,0.000162,2]
[398400324,1765612239806,-552.96,0.000162,2]
[398400325,1765612239818,-170.36,0.000162,2]
[398400326,1765612239828,-178.16,0.000162,2]
[398400327,1765612239837,-552.96,0.000162,2]
[398400328,1765612239846,-170.36,0.000162,2]
[398400329,1765612239856,-480.51,0.000162,2]
[398400330,1765612239865,-150.0,0.000162,2]
[398400331,1765612239874,-170.36,0.000162,2]
[398400332,1765612239883,-552.96,0.000162,2]
[398400333,1765612239892,-566.33,0.000162,2]
[398400334,1765612239901,-301.21,0.000162,2]
[398400335,1765612239911,-170.36,0.000162,2]
[398400336,1765612239921,-966.76,0.000162,2]
[398400337,1765612239930,-178.21,0.000162,2]
[398400338,1765612239940,-552.96,0.000162,2]
[398400339,1765612239949,-170.36,0.000162,2]
[398400340,1765612239960,-150.0,0.000162,2]
[398400341,1765612239970,-781.17,0.00016203,2]
[398400342,1765612239979,-425.0,0.00016204,2]
[398400343,1765612239988,-500.0,0.00016204,2]
[398400344,1765612239998,-500.0,0.00016204,2]
[398400345,1765612240007,-500.0,0.00016231,2]
[398400346,1765612240016,-200.0,0.00016231,2]
[398400347,1765612240026,-160.97425744,0.00016231,2]
[398400348,1765612240035,-200.0,0.00016231,2]
[398400349,1765612240045,-150.0,0.00016231,2]
[398400350,1765612240054,-166.66,0.00016241,2]
[398400351,1765612240063,-150.09557626,0.00016246,2]
[398400352,1765612240073,-188.37,0.00016249,2]
[398400353,1765612240083,-167.95,0.00016286,2]
[398400354,1765612240092,-4672.23512293,0.00016292,2]
[398400355,1765612240102,-2430.35,0.000163,2]
[398400356,1765612240111,-427.65,0.000163,2]
[398400357,1765612240120,-553.11,0.000163,2]
[398400358,1765612240130,-2432.6,0.000163,2]
[398400359,1765612240139,-150.0,0.000163,2]
[398400361,1765612240149,-153.63,0.000163,2]
[398400363,1765612240158,-243.72,0.000163,2]
[398400364,1765612240167,-300.0,0.000163,2]
[398400365,1765612240177,-2307.52,0.000163,2]
[398400366,1765612240187,-463.9,0.000163,2]
[398400367,1765612240196,-212.02,0.000163,2]
[398400368,1765612240205,-161.24,0.00016334,2]
[398400370,1765612240530,-199.0154,0.00016338,2]
[398400371,1765612240549,-425.0,0.00016341,2]
[398400372,1765612240558,-500.0,0.00016341,2]
[398400373,1765612240567,-500.0,0.00016341,2]
[398400374,1765612240576,-500.0,0.00016368,2]
[398400375,1765612240586,-10142.58992082,0.000164,2]
[398400376,1765612240595,-552.96,0.000164,2]
[398400377,1765612240605,-174.85,0.000164,2]
[398400378,1765612240614,-150.0,0.000164,2]
[398400379,1765612240624,-332.92567959,0.000164,2]
[398400380,1765612240636,-147.69432041,0.000164,2]
[398400381,1765612240646,-552.96,0.000164,2]